Workbook

Sheet 2YrValue
G11: _ | H11: ___ | J11: ___
A12: Inputs | B12: 0 | C12: 1 | D12: 2 | E12: 3 | F12: 4 | H12: Click here
A13: Horizon year | B13: 2 | H13: 1
A14: Book value per share: b0 | B14: 10 | H14: =H13+1 -> 2
A15: Cost of equity or discount rate: re | B15: 0.08000027342 | H15: =H14+1 -> 3
A16: Perpetual growth in residual earnings: g | B16: 0.02209315031 | H16: =H15+1 -> 4
A17: Earnings per share: et | B17: NA | C17: =B14*14% -> 1.4 | D17: =C17*(1+7%) -> 1.498 | H17: =H16+1 -> 5
A18: Dividend payout as % of earnings [payout] | B18: NA | C18: 0.6 | D18: =C18 -> 0.6 | E18: =D18 -> 0.6 | F18: =E18 -> 0.6 | H18: =H17+1 -> 6
A20: Financial statements | B20: =B12 -> 0 | C20: =C12 -> 1 | D20: =D12 -> 2 | E20: =E12 -> 3 | F20: =F12 -> 4
A21: Earnings per share: et | B21: =B17 -> NA | C21: =C17 -> 1.4 | D21: =D17 -> 1.498 | E21: =E25+E24 -> 1.560367346 | F21: =F25+F24 -> 1.625049284 | H21: =H18+1 -> 7 | J21: =J24+1 -> 15
A22: Dividends per share: dt | B22: =B18 -> NA | C22: =C21*C18 -> 0.84 | D22: =D21*D18 -> 0.8988 | E22: =E21*E18 -> 0.9362204075 | F22: =F21*F18 -> 0.9750295703 | H22: =H21+1 -> 8 | J22: =J21+1 -> 16
A23: Ending book value per share: bt | B23: =B14 -> 10 | C23: =B23+C21-C22 -> 10.56 | D23: =C23+D21-D22 -> 11.1592 | E23: =D23+E21-E22 -> 11.78334694 | F23: =E23+F21-F22 -> 12.43336665 | H23: =H22+1 -> 9 | I23: =H23+1 -> 10 | J23: =J22+1 -> 17
A24: Charge for equity: cost of equity*previous ending book value = re * bt-1 | C24: =$B$15*B23 -> 0.8000027342 | D24: =$B$15*C23 -> 0.8448028873 | E24: =$B$15*D23 -> 0.8927390511 | F24: =$B$15*E23 -> 0.9426709768 | H24: =I23+1 -> 11 | J24: =J25+1 -> 14
A25: Residual earnings per share: rest = et - re * bt-1 | B25: NA | C25: =C21-($B$15*B23) -> 0.5999972658 | D25: =D21-($B$15*C23) -> 0.6531971127 | E25: =D25*(1+$B$16) -> 0.6676282947 | F25: =E25*(1+$B$16) -> 0.682378307 | H25: =H24+1 -> 12 | J25: =H25+1 -> 13
A26: Growth rates and returns | B26: =B12 -> 0 | C26: =C12 -> 1 | D26: =D12 -> 2 | E26: =E12 -> 3 | F26: =F12 -> 4
A27: Earnings growth rate | D27: =D21/C21-1 -> 0.07 | E27: 0.04163374221 | F27: 0.04145301948 | H27: =J23+1 -> 18
A28: Dividends growth rate | D28: 0.07 | E28: 0.04163374221 | F28: 0.04145301948 | H28: =H27+1 -> 19
A29: Book value growth rate | C29: =C23/B23-1 -> 0.056 | D29: 0.05674242424 | E29: 0.05593115441 | F29: 0.05516426843 | H29: =H28+1 -> 20
A30: Residual earnings growth rate | D30: =IF(AND(C25=0,D25=0),0,D25/C25-1) -> 0.08866681553 | E30: =IF(AND(D25=0,E25=0),0,E25/D25-1) -> 0.02209315031 | F30: =IF(AND(E25=0,F25=0),0,F25/E25-1) -> 0.02209315031 | H30: =H29+1 -> 21
A31: Forward return on equity = Forthcoming eps/current bps [ROE] | B31: NA | C31: =C21/B23 -> 0.14 | D31: =D21/C23 -> 0.1418560606 | E31: =E21/D23 -> 0.139827886 | F31: =F21/E23 -> 0.1379106711 | H31: =H30+1 -> 22
A32: Intermediate computations: You may skip these
A33: Terminal value computation | B33: =B12 -> 0 | C33: =C12 -> 1 | D33: =D12 -> 2 | E33: =E12 -> 3 | F33: =F12 -> 4
A34: Book value of equity at the end of the year | D34: =D23 -> 11.1592 | H34: =H31+1 -> 23
A35: + PV of residual earnings at the end of the year | D35: =E25/(B15-F30) -> 11.52929482 | H35: =H34+1 -> 24
A36: = Terminal value per share | D36: =SUM(D34:D35) -> 22.68849482 | H36: =H35+1 -> 25
A37: Alternate computation of terminal value: Theoretical, skip
A38: DPS for perpetual growth = EPS - perpetual growth rate in bt * bt | E38: =E21-B16*D23 -> 1.313825463 | H38: =H36+1 -> 26
A39: Terminal value = PV of future DPS growing at the perpetual growth rate = dt/(re- g) | D39: =E38/(B15-B16) -> 22.68849482 | H39: =H38+1 -> 27
A40: Capitalized change in dividends: Change in dividends/re = (dt - dt-1)/re | C40: 0 | D40: =(D22-C22)/$B$15 -> 0.734997488 | H40: =H39+1 -> 28
A41: End of intermediate computation
A44: Valuation | B44: =B12 -> 0 | C44: =C12 -> 1
A45: Baseline: Discounted dividends Model | C45: % of Value
A46: Anchor: None | B46: 0 | C46: =B46/$B$49 -> 0 | H46: =H40+1 -> 29
A47: + Until horizon: PV of dividends until the horizon | B47: =NPV(B15,C22:D22) -> 1.548353322 | C47: =B47/$B$49 -> 0.0737308618 | H47: =H46+1 -> 30
A48: + Beyond the horizon: PV of terminal value | B48: =D36/(1+B15)^B13 -> 19.45171754 | C48: =B48/$B$49 -> 0.9262691382 | H48: =H47+1 -> 31
A49: = Total equity value | B49: =SUM(B46:B48) -> 21.00007086 | C49: =SUM(C47:C48) -> 1 | H49: =H48+1 -> 32
A50: Connecting to valuation anchors | B50: =B12 -> 0 | C50: =C12 -> 1
A51: I: Dividend yield: Dividend growth model
A52: Anchor: Capitalized forthcoming dividends | B52: =C22/B15 -> 10.49996411 | C52: =B52/$B$55 -> 0.499996604 | H52: =H49+1 -> 33
A53: + Until horizon: PV of capitalized change in dividends until the horizon | B53: =NPV(B15,C40:D40) -> 0.6301415602 | C53: =B53/$B$55 -> 0.03000663971 | H53: =H52+1 -> 34
A54: + Beyond the horizon: PV of capitalized change in dividends beyond the horizon | B54: =B49-SUM(B52:B53) -> 9.869965186 | C54: =B54/$B$55 -> 0.4699967563 | H54: =H53+1 -> 35
A55: = Total equity value | B55: =SUM(B52:B54) -> 21.00007086 | C55: =SUM(C52:C54) -> 1 | H55: =H54+1 -> 36
A56: II: Price to book: Book value growth model [RIV] | C56: % of Value
A57: Anchor: Current book value | B57: =B14 -> 10 | C57: =B57/$B$61 -> 0.4761888694 | H57: =H55+1 -> 37
A58: + Until horizon: PV of residual change in book value for the first 2 years | B58: =NPV(B15,C25:D25) -> 1.115563842 | C58: =B58/$B$61 -> 0.05312190845 | H58: =H57+1 -> 38
A59: [Note: Residual change in book value = residual earnings]
A60: + Beyond the horizon: PV of residual change in book value beyond 2 years | B60: =D35/(1+B15)^B13 -> 9.884507019 | C60: =B60/$B$61 -> 0.4706892222 | H60: =H58+1 -> 39
A61: = Total equity value | B61: =B57+B58+B60 -> 21.00007086 | C61: =SUM(C57:C60) -> 1 | H61: =H60+1 -> 40
A62: Intermediate computations: You may skip these | B62: =B12 -> 0 | C62: =C12 -> 1 | D62: =D12 -> 2 | E62: =E12 -> 3 | F62: =F12 -> 4
A63: Change in earnings [et - et-1] | D63: =D21-C21 -> 0.098 | E63: =E21-D21 -> 0.06236734583 | F63: =F21-E21 -> 0.06468193799 | H63: =H61+1 -> 41
A64: Reinvestment at the end of the previous year: et-1 - dt-1 | C64: =C21-C22 -> 0.56 | D64: =D21-D22 -> 0.5992 | E64: =E21-E22 -> 0.6241469383 | F64: =F21-F22 -> 0.6500197135 | H64: =H63+1 -> 42
A65: Change in earnings if reinvestment yields cost of equity [=re*(et-1 - dt-1)] | D65: =C64*$B$15 -> 0.04480015311 | E65: =D64*$B$15 -> 0.04793616383 | F65: =E64*$B$15 -> 0.04993192572 | H65: =H64+1 -> 43
A66: Residual change in earnings [=(et - et-1) - re*(et-1 - dt-1)]
A67: [i.e., actual change in earnings - change in earnings from normal return on reinvestment] | D67: =D63-D65 -> 0.05319984689 | E67: =E63-E65 -> 0.014431182 | F67: =F63-F65 -> 0.01475001227 | H67: =H65+1 -> 44
A68: Not used: Just for checking
A69: Change in residual earnings ['(et - re*bt-1)- (et-1 - re*bt-2)] | B69: NA | C69: NA | D69: =D25-C25 -> 0.05319984689 | E69: =E25-D25 -> 0.014431182 | F69: =F25-E25 -> 0.01475001227 | H69: =H67+1 -> 45
A70: Check: Residual change in earnings = Change in residual earnings | D70: =D67-D69 -> 6.938893904e-17 | E70: =E67-E69 -> -9.714451465e-17 | F70: =F67-F69 -> 5.551115123e-17 | H70: =H69+1 -> 46
A71: Growth rate of residual change in earnings | E71: =IF(AND(D69=0,E69=0),0,E69/D69-1) -> -0.7287363998 | F71: =IF(AND(E69=0,F69=0),0,F69/E69-1) -> 0.02209315031 | H71: 47
A72: Value added each year: Capitalized forthcoming residual change in earnings | C72: =D67/$B$15 -> 0.6649958133 | D72: =E67/$B$15 -> 0.1803891584 | E72: =F67/$B$15 -> 0.1843745232 | H72: 48
A73: PV of value added each year based on earnings forecasts until the horizon | B73: =NPV(B15,C72) -> 0.6157367083 | H73: 49
A74: Capitalized value of value added per year beyond the horizon | C74: =D72/(B15-B16) -> 3.115146268 | H74: 50
A75: PV of value added each year based on earnings forecasts beyond the horizon | B75: =NPV(B15,C74) -> 2.884393962 | H75: 51
A76: End of intermediate computation
A77: III. Price to forward earnings: Earning growth Model [AEG] | C77: % of Value
A78: Anchor: Capitalized value of forthcoming earnings for Y1 | B78: =C21/B15 -> 17.49994019 | C78: =B78/$B$81 -> 0.8333276733 | H78: =H75+1 -> 52
A79: + Until horizon: PV of value based on earnings forecasts until the horizon | B79: =B73 -> 0.6157367083 | C79: =B79/$B$81 -> 0.0293206967 | H79: =H78+1 -> 53
A80: + Beyond the horizon: PV of value based on earnings forecasts beyond the horizon | B80: =C74/(1+B15) -> 2.884393962 | C80: =B80/$B$81 -> 0.13735163 | H80: =H79+1 -> 54
A81: = Total Equity Value | B81: =SUM(B78:B80) -> 21.00007086 | C81: =SUM(C78:C80) -> 1 | H81: =H80+1 -> 55
A83: Valuation ratios | B83: 0
A84: Dividend yield = Forthcoming dividends/Current stock price | B84: =C22/B49 -> 0.03999986503 | H84: =H81+1 -> 56
A85: P/B ratio = Current stock price/current book value | B85: =B61/B14 -> 2.100007086 | H85: =H84+1 -> 57
A86: Forward P/E ratio = Current stock price/Forthcoming earnings | B86: =B61/C17 -> 15.00005061 | H86: =H85+1 -> 58
A87: Forward ROE = Forthcoming earnings/Current book value | B87: =C31 -> 0.14 | H87: =H86+1 -> 59
A88: Check: P/B - P/E * ROE = 0 | B88: =B85-B86*B87 -> 0 | H88: =H87+1 -> 60
A90: Reverse engineering: Inferring cost of equity OR growth | B90: =B83 -> 0
A91: Current stock price | B91: =C17*15 -> 21 | H91: =H88+1 -> 61
A92: Difference = Current stock price - Computed present value | B92: =B91-B61 -> -7.086074939e-05 | H92: =H91+1 -> 62
A93: Choose one of the following from the drop down box on the right and then CLICK INFER
A94: Infer cost of equity | C94: 2 | H94: =H92+1 -> 63
A95: Infer growth rate | H95: =H94+1 -> 64
A96: =IF(C94=1,"Inferred cost of equity", "Inferred growth rate")&" that sets Price = Present value " -> Inferred growth rate that sets Price = Present value | B96: =IF(C94=1,B15,B16) -> 0.02209315031 | H96: =H95+1 -> 65
